bitfinex-derivatives/quotes_ETHF0:USTF0_20240917
["timestamp","ask_amount","ask_price","bid_price","bid_amount"]
[1726590136349,2.18712819,2374.9,2374.3,1.05277]
[1726590136547,1.63925106,2374.4,2374.1,4.04]
[1726590136843,1.63925106,2374.3,2374.1,4.04]
[1726590137049,1.63925106,2374.3,2374.2,0.42113]
[1726590137338,2.18712819,2374.4,2374.3,0.42111]
[1726590137339,1.63898108,2374.4,2374.3,0.42111]
[1726590137546,2.18712819,2374.5,2374.3,0.42111]
[1726590137748,2.18712819,2374.5,2374.1,7.2478]
[1726590138045,1.63817957,2374.3,2374.2,0.42113]
[1726590138543,2.18441621,2374.4,2374.2,0.42113]
[1726590138744,2.39507953,2374.3,2374.2,0.42113]
[1726590138941,2.39507953,2374.3,2374.1,0.42114]
[1726590139249,0.21066332,2374.2,2374.1,0.42113]
[1726590139437,1.63676476,2374.2,2374.1,4.46113]
[1726590139637,2.74392842,2374.5,2374.1,4.46113]
[1726590139638,1.63676476,2374.4,2374.3,0.42111]
[1726590139945,1.63676476,2374.5,2374.4,0.42109]
[1726590140149,1.63676476,2374.5,2374.4,5.51382]
[1726590140336,2.18441621,2374.7,2374.4,5.09273]
[1726590140337,1.63714313,2374.6,2374.4,5.09273]
[1726590140535,1.63714313,2374.8,2374.5,4.26049]
[1726590140744,1.63714313,2374.8,2374.7,4.46104]
[1726590141048,1.63714313,2374.8,2374.7,5.51364]
[1726590141250,1.63714313,2374.9,2374.8,0.42102]
[1726590142147,2.81603545,2375.0,2374.7,0.42103]
[1726590142340,2.81603545,2375.0,2374.4,5.09273]
[1726590142341,1.63711957,2374.8,2374.6,0.42105]
[1726590142648,1.63711957,2374.7,2374.6,0.42105]
[1726590142839,1.84775783,2374.7,2374.6,0.42105]
[1726590143043,1.8477556,2374.7,2374.6,0.42105]
[1726590143348,1.63711957,2374.7,2374.6,0.42105]
[1726590143537,1.63711957,2374.7,2374.5,0.42107]
[1726590143743,1.63711957,2374.6,2374.4,0.42108]
[1726590143943,1.63711957,2374.6,2374.4,0.42109]
[1726590144549,1.63711957,2374.6,2374.1,9.27186]
[1726590144550,1.84777541,2374.6,2374.1,9.27186]
[1726590144745,1.84777541,2374.6,2374.4,0.42108]
[1726590144945,1.84777541,2374.6,2374.5,0.42107]
[1726590144946,1.63711957,2374.6,2374.5,0.42107]
[1726590145145,1.63711957,2374.6,2374.2,4.26061]
[1726590145351,2.74392842,2374.9,2374.4,5.09272]
[1726590145352,1.63711957,2374.7,2374.4,5.09272]
[1726590145648,2.74392842,2375.0,2374.8,0.42102]
[1726590145649,2.18441621,2375.0,2374.8,0.42102]
[1726590145956,1.84549302,2374.9,2374.7,0.42103]
[1726590146350,1.63487135,2374.9,2374.5,3.2078]
[1726590146546,1.84549515,2374.9,2374.7,0.42103]
[1726590146746,1.63487135,2374.8,2374.7,0.42103]
[1726590147060,1.63487135,2374.9,2374.7,0.42103]
[1726590147255,1.63487135,2374.8,2374.7,0.42103]
[1726590147549,1.63487135,2374.9,2374.8,0.42102]
[1726590147952,1.63487135,2374.9,2374.7,0.42102]
[1726590148149,1.63487135,2374.9,2374.8,0.42102]
[1726590148452,0.42106,2374.6,2374.3,0.42109]
[1726590148749,2.05441326,2374.6,2374.4,0.42109]
[1726590148956,1.63335326,2374.5,2374.4,0.42109]
[1726590149651,1.63335326,2374.6,2374.4,0.42109]
[1726590149851,1.63340121,2374.7,2374.3,1.05277]
[1726590150049,1.63340121,2374.7,2374.6,0.42106]
[1726590150349,1.63340121,2374.7,2374.2,4.26062]
[1726590150853,1.63340121,2374.6,2374.2,3.2078]
[1726590151147,1.63340121,2374.6,2374.3,0.4211]
[1726590151148,1.63340121,2374.5,2374.3,0.4211]
[1726590151542,2.05447121,2374.5,2374.3,0.4211]
[1726590151747,1.63340121,2374.5,2374.4,0.42109]
[1726590152153,5.84460121,2374.5,2374.0,1.0529]
[1726590152352,2.05513263,2374.5,2374.3,0.42109]
[1726590152557,1.63405263,2374.4,2374.3,0.42109]
[1726590152954,1.63405263,2374.5,2374.4,0.42109]
[1726590153548,1.63405263,2374.6,2374.5,0.42107]
[1726590153756,2.26576607,2374.6,2374.4,0.42108]
[1726590154053,2.05513263,2374.5,2374.3,0.4211]
[1726590154455,0.42109,2374.4,2374.3,0.4211]
[1726590154652,2.05514263,2374.4,2374.3,0.4211]
[1726590154950,1.63405263,2374.4,2374.3,0.4211]
[1726590155354,1.84466453,2374.4,2374.3,0.42111]
[1726590155553,1.63399355,2374.4,2374.3,1.47389]
[1726590155856,2.17780435,2374.5,2374.4,1.47382]
[1726590155857,1.63399355,2374.5,2374.4,1.47382]
[1726590156057,2.17780435,2374.6,2374.5,0.42107]
[1726590156058,1.63399355,2374.6,2374.5,0.42107]
[1726590157254,1.63399355,2374.7,2374.6,0.42106]
[1726590157855,2.17780435,2374.8,2374.7,0.42104]
[1726590158255,2.38844048,2374.8,2374.7,0.42104]
[1726590158450,2.17780435,2374.8,2374.7,0.42104]
[1726590158760,1.84600778,2374.8,2374.7,0.42104]
[1726590159056,1.63537549,2374.9,2374.8,0.42102]
[1726590159362,1.63537549,2374.9,2374.4,5.0927]
[1726590159661,1.63537549,2374.9,2374.8,0.42101]
[1726590159662,2.39110252,2374.9,2374.8,0.42101]
[1726590160757,2.18048226,2375.0,2374.9,0.421]
[1726590160953,2.18048226,2375.0,2374.6,3.2078]
[1726590160954,2.81209778,2375.0,2374.6,3.2078]
[1726590161155,1.63616473,2374.8,2374.7,0.42104]
[1726590161360,1.63616473,2374.8,2374.5,1.05268]
[1726590161361,0.42104,2374.7,2374.5,0.42106]
[1726590161548,2.05750079,2374.6,2374.2,3.2078]
[1726590161747,1.63644079,2374.5,2374.4,0.42109]
[1726590161954,2.81364856,2374.5,2374.3,0.4211]
[1726590162156,0.21064751,2374.4,2374.3,0.4211]
[1726590162462,2.18192105,2374.4,2374.3,0.4211]
[1726590162656,2.39256856,2374.4,2374.3,0.4211]
[1726590163350,2.18192105,2374.4,2374.3,0.4211]
[1726590163562,2.39256856,2374.4,2374.3,0.4211]
[1726590163862,2.39256856,2374.4,2374.3,0.42111]
[1726590164062,2.39400873,2374.4,2374.3,0.42111]
[1726590164356,0.21064751,2374.4,2374.3,0.42111]
[1726590164555,2.18435984,2374.4,2374.3,0.42111]
[1726590164756,4.63801281,2374.5,2374.4,0.42109]
[1726590164949,4.63786754,2374.5,2374.4,0.42109]
[1726590165154,2.18363897,2374.6,2374.5,0.42107]
[1726590165358,2.18363897,2374.6,2374.5,0.32684543]
[1726590165559,2.39426279,2374.6,2374.5,0.32684543]
[1726590165958,2.39657992,2374.6,2374.5,0.32684543]
[1726590166559,2.1859561,2374.6,2374.5,0.32684543]
[1726590166859,2.1859561,2374.6,2374.4,4.46108]
[1726590167052,2.1859561,2374.6,2374.4,4.04]
[1726590167248,2.39657992,2374.5,2374.4,4.46109]
[1726590167660,2.1859561,2374.5,2374.4,4.46109]
[1726590167855,2.39657992,2374.5,2374.4,4.46109]
[1726590168355,9.06226162,2374.5,2374.0,3.2078]
[1726590168558,3.2078,2374.7,2374.0,3.62896]
[1726590168559,1.64055217,2374.1,2374.0,3.62896]
[1726590168763,1.64055217,2374.1,2374.0,7.66896]
[1726590170566,2.1874029,2374.2,2374.1,0.42114]
[1726590171163,2.39806526,2374.2,2374.1,0.42114]
[1726590171559,2.73425362,2374.3,2374.2,0.42113]
[1726590172457,3.28018161,2374.5,2374.4,0.42109]
[1726590172663,3.28018161,2374.5,2374.1,1.05285]
[1726590172868,3.28018161,2374.5,2374.4,0.42109]
[1726590174261,5.38740495,2374.5,2374.4,0.42109]
[1726590174468,4.84332319,2374.5,2374.4,1.47382]
[1726590174861,0.21065862,2374.5,2374.4,6.73775]
[1726590175058,2.73609985,2374.6,2374.5,1.47376]
[1726590175267,2.73609985,2374.6,2374.5,2.52645]
[1726590175564,2.73609985,2374.6,2374.4,1.05273]
[1726590175565,4.83184674,2374.6,2374.4,1.05273]
[1726590175769,4.83171959,2374.5,2374.4,0.42109]
[1726590176163,4.62110067,2374.5,2374.4,0.42109]
[1726590176373,4.83129249,2374.5,2374.4,0.42109]
[1726590176563,4.83129249,2374.5,2374.4,1.47382]
[1726590176965,4.62067357,2374.5,2374.4,1.47382]
[1726590177271,2.73632166,2374.5,2374.4,2.13202599]
[1726590177461,3.83166708,2374.8,2374.7,0.42104]
[1726590177656,5.11384862,2374.8,2374.7,0.42104]
[1726590177871,8.9455157,2374.8,2374.3,4.26057]
[1726590178070,8.54470216,2375.1,2374.5,0.42106]
[1726590178071,3.28339425,2374.6,2374.5,0.42106]
[1726590178258,5.16924718,2374.6,2374.5,0.42106]
[1726590178462,3.49402526,2374.6,2374.5,0.42106]
[1726590178767,6.51029709,2374.6,2374.5,0.42106]
[1726590178961,8.18551901,2374.6,2374.5,0.42106]
[1726590179474,8.39615002,2374.6,2374.5,0.42106]
[1726590179664,8.39760494,2374.6,2374.5,0.42106]
[1726590179859,5.11275577,2374.6,2374.5,0.42106]
[1726590180063,3.2850689,2374.6,2374.5,0.42106]
[1726590180362,3.2850689,2374.6,2374.0,4.04]
[1726590180363,0.42108,2374.5,2373.9,0.42117]
[1726590180563,7.11495491,2374.1,2373.7,0.42121]
[1726590180868,3.28376687,2373.8,2373.7,4.46122]
[1726590181071,2.0957104,2373.8,2373.7,4.46122]
[1726590181271,5.16876291,2373.8,2373.7,4.46122]
[1726590181567,3.28376687,2373.8,2373.6,3.62902]
[1726590181764,3.49448123,2373.8,2373.7,0.42122]
[1726590181970,3.28376687,2373.8,2373.7,0.42122]
[1726590182363,3.28376687,2373.9,2373.8,0.4212]
[1726590182566,4.04182784,2373.9,2373.2,3.2078]
[1726590182859,4.04182784,2373.9,2373.3,1.71209078]
[1726590182860,2.73455563,2373.4,2373.3,1.71209078]
[1726590183066,2.73455563,2373.4,2373.3,0.42129]
[1726590183067,2.09460489,2373.4,2373.3,0.42129]
[1726590183369,2.09460489,2373.4,2372.8,1.05342]
[1726590183370,3.83112957,2373.5,2373.1,0.42131]
[1726590183569,3.27781294,2373.4,2372.9,0.33280995]
[1726590183767,2.73135124,2373.1,2373.0,0.42134]
[1726590183962,2.09460489,2373.1,2372.9,0.42136]
[1726590184262,4.82182946,2373.0,2372.9,4.46136]
[1726590184566,2.1834006,2373.0,2372.9,4.04]
[1726590184769,2.09090036,2373.0,2372.9,4.46136]
[1726590184960,3.48858548,2373.2,2373.1,0.42132]
[1726590185158,3.48858548,2373.2,2372.7,3.2078]
[1726590185159,2.09073843,2373.2,2372.7,3.2078]
[1726590185365,2.72939118,2373.0,2372.8,0.42137]
[1726590185559,2.72939118,2373.0,2372.7,3.2078]
[1726590185560,4.60775132,2373.0,2372.7,3.2078]
[1726590185768,2.18161837,2372.8,2372.7,3.62918]
[1726590186076,5.36655632,2372.8,2372.1,4.04]
[1726590186371,1.63586934,2372.3,2372.2,3.62928]
[1726590186760,1.63586934,2372.3,2372.2,3.2078]
[1726590186966,2.18115808,2372.4,2372.2,3.2078]
[1726590187175,2.18115808,2372.4,2371.0,4.9098672]
[1726590187176,6.99481401,2372.3,2371.8,3.2078]
[1726590187359,1.63215086,2371.9,2371.8,3.2078]
[1726590187764,1.63215086,2372.0,2371.8,3.2078]
[1726590187968,1.63215086,2371.9,2371.8,3.2078]
[1726590188370,4.216,2371.9,2371.8,3.2078]
[1726590188670,1.63215086,2372.0,2371.8,3.2078]
[1726590189363,0.21087421,2372.1,2371.8,3.2078]
[1726590189364,1.63215086,2372.1,2371.8,3.2078]
[1726590190263,4.83995086,2372.2,2371.8,3.62935]
[1726590190570,1.63215086,2372.3,2371.9,0.42153]
[1726590190766,1.63215086,2372.3,2371.8,3.2078]
[1726590190969,1.08388017,2372.2,2371.8,3.2078]
[1726590191468,1.08388017,2372.3,2371.8,3.62934]
[1726590191773,1.08388017,2372.2,2371.8,3.2078]
[1726590192466,1.08388017,2372.3,2371.8,3.2078]
[1726590192664,1.50537017,2372.2,2371.8,3.2078]
[1726590193176,1.08388017,2372.2,2371.8,3.2078]
[1726590193372,2.05362086,2372.3,2371.8,3.62934]
[1726590193373,1.08388017,2372.3,2371.8,3.62934]
[1726590193568,0.42149,2372.2,2371.8,3.2078]
[1726590193872,0.42152,2372.0,2371.8,3.2078]
[1726590194071,8.50768017,2372.1,2371.8,3.2078]
[1726590194371,4.29168017,2372.1,2371.8,0.42155]
[1726590194564,7.4238,2372.1,2371.6,4.04]
[1726590194767,3.2078,2372.1,2371.6,4.04]
[1726590194976,3.2078,2372.1,2372.0,0.42152]
[1726590195162,3.2078,2372.1,2371.6,4.04]
[1726590195163,0.42149,2372.2,2371.8,0.42155]
[1726590195470,0.42149,2372.2,2371.8,0.42154]
[1726590195680,0.42148,2372.2,2371.9,0.42153]
[1726590195969,4.83995086,2372.4,2371.6,4.04]
[1726590195970,0.4215,2372.1,2371.6,4.04]
[1726590196172,4.71313017,2372.4,2372.1,0.42149]
[1726590196474,4.71313017,2372.4,2371.6,5.09396]
[1726590196475,3.2078,2372.4,2371.6,7.2478]
[1726590196671,3.2078,2372.4,2371.9,0.42152]
[1726590196872,0.42148,2372.3,2371.9,0.42153]
[1726590197176,3.2078,2372.4,2371.6,7.2478]
[1726590197364,3.2078,2372.4,2371.3,7.2478]
[1726590197365,3.2078,2372.1,2371.3,7.2478]
[1726590197769,3.2078,2372.1,2371.7,0.42156]
[1726590197770,0.42152,2372.0,2371.7,0.42156]
[1726590198073,0.42153,2371.9,2371.3,7.2478]
[1726590198278,0.42153,2371.9,2371.6,0.42158]
[1726590198683,3.62935,2371.8,2371.6,0.42158]
[1726590198979,3.62936,2371.8,2371.6,0.42158]
[1726590199271,4.216,2371.7,2371.3,0.42163]
[1726590199473,3.2078,2371.5,2371.0,4.04]
[1726590199779,3.62942,2371.5,2371.3,0.42164]
[1726590199971,4.26183,2371.5,2371.0,4.04]
[1726590200172,4.26183,2371.5,2369.8,4.04]
[1726590200173,0.42164,2371.4,2370.7,1.05438]
[1726590200375,0.42165,2371.3,2370.7,1.05438]
[1726590200574,0.42165,2371.3,2370.6,1.05442]
[1726590200575,3.2078,2371.5,2370.6,1.05442]
[1726590200768,3.62946,2371.2,2371.0,0.42169]
[1726590200965,0.05782482,2371.1,2370.5,7.2478]
[1726590201177,0.05782482,2371.1,2370.9,0.4217]
[1726590201477,0.05782482,2371.1,2370.5,7.2478]
[1726590201478,0.47951482,2371.1,2370.5,7.2478]
[1726590201669,0.47951482,2371.1,2370.9,0.4217]
[1726590201876,0.05782482,2371.0,2370.9,0.4217]
[1726590202273,4.27542482,2371.0,2370.9,0.4217]
[1726590202479,4.27542482,2371.0,2370.6,0.42175]
[1726590202776,4.27542482,2371.0,2370.5,0.42178]
[1726590202777,0.42175,2370.7,2370.5,0.42178]
[1726590202975,0.05782482,2370.6,2370.5,0.42178]
[1726590204177,0.05782482,2370.6,2370.2,3.2078]
[1726590204178,0.42179,2370.5,2370.2,3.2078]
[1726590204477,1.05451,2370.4,2370.0,0.2]
[1726590204679,0.42184,2370.2,2370.0,0.2]
[1726590204867,0.47967482,2370.1,2370.0,0.2]
[1726590205270,4.27702482,2370.1,2370.0,0.62187]
[1726590205682,4.69887482,2370.1,2370.0,0.2]
[1726590205873,4.69887482,2370.1,2370.0,0.62187]
[1726590205874,4.27702482,2370.1,2370.0,0.62187]
[1726590206176,4.69887482,2370.1,2370.0,0.2]
[1726590206576,5.75351482,2370.1,2370.0,0.2]
[1726590206879,5.75351482,2370.1,2368.9,2.11031]
[1726590206880,0.42203,2369.1,2368.9,0.42206]
[1726590207079,7.2478,2369.9,2368.8,3.2078]
[1726590207278,3.2078,2369.6,2368.8,3.2078]
[1726590207582,3.2078,2369.6,2368.6,1.05531]
[1726590207780,3.2078,2369.6,2368.8,3.2078]
[1726590208079,0.05782482,2369.2,2368.5,3.2078]
[1726590208279,0.05782482,2369.2,2368.4,5.09537]
[1726590208280,0.05782482,2369.2,2368.8,3.2078]
[1726590208476,0.05782482,2369.2,2369.1,0.42203]
[1726590209376,0.05782482,2369.2,2369.1,3.62983]
[1726590209679,0.05782482,2369.2,2369.1,0.42203]
[1726590209881,0.05782482,2369.2,2368.8,3.2078]
[1726590210180,3.62977,2369.5,2369.0,0.36422518]
[1726590210377,3.62977,2369.5,2369.0,0.42204]
[1726590210584,4.26262,2369.8,2368.8,3.2078]
[1726590210780,5.09463,2370.2,2368.8,3.62988]
[1726590210781,3.2078,2369.5,2368.8,3.62988]
[1726590211077,0.42203,2369.2,2368.8,3.2078]
[1726590211681,3.2078,2369.4,2368.9,0.42207]
[1726590211876,0.422,2369.3,2368.9,0.42207]
[1726590212176,0.42197,2369.5,2369.1,0.42203]
[1726590212370,0.42198,2369.4,2369.0,0.42204]
[1726590212878,0.422,2369.3,2368.7,3.2078]
[1726590213081,0.42206,2369.0,2368.6,0.42211]
[1726590213677,0.42204,2369.1,2368.4,3.2078]
[1726590213873,3.2078,2369.2,2368.4,3.2078]
[1726590214176,3.2078,2369.2,2368.8,0.42207]
[1726590214177,3.62982,2369.2,2368.8,0.42207]
[1726590214382,0.422,2369.3,2368.9,0.42206]
[1726590214679,1.055,2369.3,2368.7,3.2078]
[1726590214983,0.42203,2369.1,2368.7,0.42209]
[1726590215283,0.42203,2369.1,2368.4,7.2478]
[1726590215284,3.2078,2369.2,2368.4,7.2478]
[1726590215784,0.42204,2369.1,2368.7,0.42209]
[1726590216085,3.2078,2369.2,2368.9,0.42206]
[1726590216385,0.33235714,2369.9,2368.7,3.2078]
[1726590216386,3.2078,2369.5,2368.7,3.2078]
[1726590216585,3.2078,2369.5,2369.4,0.42198]
[1726590216877,0.42187,2370.0,2369.6,0.42193]
[1726590217083,0.42188,2370.0,2369.6,0.42193]
[1726590217273,3.2078,2370.2,2369.6,0.42193]
[1726590217585,1.05464,2370.1,2369.5,0.42196]
[1726590217780,3.2078,2370.2,2369.3,7.2478]
[1726590218082,3.2078,2370.2,2369.7,0.42192]
[1726590218386,0.42188,2370.0,2369.6,0.42194]
[1726590218575,3.2078,2369.9,2369.7,0.42192]
[1726590218781,3.2078,2369.9,2369.0,3.2078]
[1726590218976,0.42192,2369.8,2369.4,0.42197]
[1726590219279,0.42191,2369.8,2369.4,0.42197]
[1726590219585,0.42188,2370.0,2369.2,1.05504]
[1726590219785,0.42188,2370.0,2369.6,0.42194]
[1726590220081,4.26242,2370.2,2369.3,3.2078]
[1726590220082,3.2078,2370.2,2369.5,0.42195]
[1726590220377,3.2078,2370.2,2369.8,0.4219]
[1726590220580,3.2078,2370.2,2369.3,4.26278]
[1726590220581,3.62965,2370.2,2369.9,0.42189]
[1726590220779,3.2078,2370.2,2370.1,0.42185]
[1726590221178,3.62954,2370.8,2370.4,0.42179]
[1726590221377,3.62954,2370.8,2370.5,0.42178]
[1726590221583,3.62954,2370.8,2370.2,3.2078]
[1726590221584,3.2078,2370.8,2370.2,3.2078]
[1726590222087,3.2078,2370.8,2370.6,0.42176]
[1726590222285,4.26197,2371.2,2370.6,0.42176]
[1726590222479,0.42171,2371.0,2370.6,0.42176]
[1726590222787,0.42171,2370.9,2370.2,4.26238]
[1726590222989,4.26197,2371.2,2370.6,0.42176]
[1726590223191,0.42172,2370.9,2370.5,0.42177]
[1726590223480,0.42172,2370.9,2370.4,0.42179]
[1726590223481,3.2078,2370.9,2370.4,0.42179]
[1726590223682,3.2078,2370.9,2369.8,1.05475]
[1726590223683,0.42173,2370.8,2370.2,3.2078]
[1726590223879,0.42172,2370.9,2370.5,0.42177]
[1726590224077,0.42173,2370.8,2370.5,0.42177]
[1726590224291,0.42172,2370.9,2370.2,3.2078]
[1726590224483,3.62947,2371.2,2370.9,0.4217]
[1726590224681,3.2078,2371.2,2370.8,0.42172]
[1726590224878,3.2078,2371.2,2370.6,0.42177]
[1726590225084,3.2078,2371.2,2370.2,3.2078]
[1726590225085,4.04,2371.1,2370.2,3.2078]
[1726590225281,4.04,2371.1,2370.0,3.2078]
[1726590225282,4.26211,2370.9,2370.0,3.2078]
[1726590225491,0.4218,2370.4,2370.1,0.42185]
[1726590225987,3.2078,2370.6,2370.0,3.2078]
[1726590226180,3.62962,2370.3,2369.7,3.2078]
[1726590226383,0.42178,2370.6,2369.7,3.2078]
[1726590226581,4.26215,2370.8,2370.0,3.2078]
[1726590226788,0.42175,2370.7,2370.0,4.26246]
[1726590227084,0.42175,2370.7,2369.9,1.05473]
[1726590227085,0.42172,2370.9,2370.6,0.42176]
[1726590227492,3.2078,2371.1,2370.4,3.2078]
[1726590228095,3.2078,2371.1,2370.7,0.42174]
[1726590228287,0.4217,2371.0,2370.7,0.42174]
[1726590228489,0.4217,2371.0,2369.9,4.04]
[1726590228490,3.2078,2370.8,2368.9,2.76964527]
[1726590228793,3.2078,2370.8,2370.0,3.2078]
[1726590228794,0.42176,2370.7,2370.0,3.2078]
[1726590228986,4.26215,2370.8,2370.0,3.2078]
[1726590229295,3.2078,2370.8,2370.0,3.2078]
[1726590229491,3.2078,2370.8,2370.3,0.42181]
[1726590229691,0.42178,2370.6,2370.3,0.42181]
[1726590230192,1.05438,2370.7,2370.0,3.2078]
[1726590230399,3.2078,2370.5,2370.0,3.2078]
[1726590230621,0.42189,2369.9,2369.5,3.2078]
[1726590230890,0.42188,2370.0,2369.7,0.42191]
[1726590231091,4.26247,2370.1,2369.6,0.42194]
[1726590231292,4.26247,2370.1,2369.5,3.2078]
[1726590231293,0.42189,2369.9,2369.5,3.2078]
[1726590231492,3.2078,2370.1,2369.5,3.2078]
[1726590231694,0.42194,2369.7,2369.5,3.2078]
[1726590231894,4.26246,2370.1,2369.3,0.422]
[1726590232094,4.26246,2370.1,2369.6,0.42194]
[1726590232296,3.2078,2370.1,2369.2,3.2078]
[1726590232499,0.42186,2369.9,2369.6,0.42189]
[1726590232696,3.2078,2370.1,2369.5,3.2078]
[1726590232898,3.2078,2370.1,2369.9,0.42183]
[1726590233405,0.42182,2370.1,2369.5,3.2078]
[1726590233701,3.2078,2370.2,2369.7,0.42187]
[1726590233901,0.42184,2370.0,2369.7,0.42188]
[1726590234204,4.26234,2370.2,2369.6,3.2078]
[1726590234403,4.26234,2370.2,2369.5,0.42191]
[1726590234404,1.05454,2370.1,2369.5,0.42191]
[1726590234595,0.42188,2369.8,2369.3,3.2078]
[1726590234795,0.42188,2369.8,2369.5,0.42191]
[1726590234994,0.42186,2369.9,2369.3,3.2078]
[1726590235203,1.08388017,2370.1,2369.4,0.42193]
[1726590235400,1.08388017,2370.1,2369.3,3.2078]
[1726590235401,0.42187,2369.8,2369.3,3.2078]
[1726590235711,5.89447086,2370.2,2369.7,0.42187]
[1726590235712,0.42184,2370.0,2369.7,0.42187]
[1726590235893,0.42184,2370.0,2369.6,3.2078]
[1726590235894,0.42182,2370.1,2369.6,3.2078]
[1726590236093,4.29168017,2370.2,2369.8,0.42186]
[1726590236397,0.42183,2370.1,2369.8,0.42186]
[1726590236698,0.42182,2370.1,2369.8,0.42186]
[1726590236894,1.08388017,2370.3,2370.1,0.42181]
[1726590237093,1.08388017,2370.4,2369.7,3.2078]
[1726590237297,1.08388017,2370.4,2370.1,0.4218]
[1726590237509,0.42179,2370.3,2370.0,0.42183]
[1726590237712,1.08388017,2370.4,2369.7,3.2078]
[1726590238004,1.08388017,2370.4,2369.6,1.05473]
[1726590238005,1.08388017,2370.4,2370.0,3.2078]
[1726590238310,1.08388017,2370.4,2370.0,3.62962]
[1726590238311,1.08388017,2370.3,2370.0,3.62962]
[1726590238504,1.50566017,2370.3,2370.1,0.42181]
[1726590238703,1.50566017,2370.3,2370.0,3.2078]
[1726590238704,1.08388017,2370.3,2370.0,3.2078]
[1726590239003,1.08388017,2370.3,2370.2,0.42179]
[1726590239500,1.50566017,2370.3,2370.1,0.4218]
[1726590239707,1.08388017,2370.3,2370.2,0.42179]
[1726590240013,1.08388017,2370.3,2370.0,3.2078]
[1726590240014,1.08388017,2370.4,2370.3,0.42178]
[1726590240198,1.08388017,2370.5,2370.3,3.2078]
[1726590240514,1.08388017,2370.6,2370.4,4.2184]
[1726590240803,2.72041342,2371.0,2370.8,0.42168]
[1726590240804,1.08388017,2371.0,2370.8,0.42168]
[1726590241007,1.08388017,2371.0,2370.3,10.26225]
[1726590241008,1.08388017,2371.1,2370.3,3.2078]
[1726590241209,1.08388017,2371.0,2370.3,3.2078]
[1726590241506,1.08388017,2370.8,2370.3,3.2078]
[1726590241714,2.71603103,2370.8,2370.4,0.42175]
[1726590241898,2.71603103,2370.8,2370.5,0.42173]
[1726590241899,1.08388017,2370.7,2370.5,0.42173]
[1726590242205,1.08388017,2370.8,2370.3,3.2078]
[1726590242399,1.08388017,2370.8,2369.9,4.179]
[1726590242400,1.08388017,2370.5,2370.0,3.2078]
[1726590242603,1.08388017,2370.5,2370.4,0.42176]
[1726590242906,1.08541142,2370.7,2370.5,0.42174]
[1726590243102,1.08541142,2370.7,2370.6,0.42172]
[1726590243408,1.63215086,2370.8,2370.7,0.42171]
[1726590243631,1.08612147,2370.8,2370.7,0.42171]
[1726590243819,2.17620115,2371.0,2370.7,10.2184]
[1726590243820,1.08612147,2371.0,2370.7,10.2184]
[1726590244124,1.08612147,2371.2,2371.1,0.42163]
[1726590244328,1.08612147,2371.3,2371.2,0.42162]
[1726590244527,1.08612147,2371.4,2371.3,0.4216]
[1726590244728,1.08612147,2371.4,2371.2,3.2078]
[1726590245119,1.08612147,2371.4,2371.3,0.4216]
[1726590245430,1.0869757,2371.5,2371.4,0.42158]
[1726590245631,1.63215086,2371.6,2371.2,3.2078]
[1726590245835,1.0864474,2371.6,2371.5,0.42156]
[1726590247129,1.0864474,2371.6,2371.4,3.62937]
[1726590247325,1.0864474,2371.6,2371.4,3.2078]
[1726590247525,1.08510668,2371.5,2371.0,3.2078]
[1726590247724,1.08510668,2371.5,2371.3,3.2078]
[1726590247928,1.08510668,2371.5,2371.3,3.62939]
[1726590248131,1.08510668,2371.5,2371.3,3.2078]
[1726590248334,1.08510668,2371.4,2371.0,3.2078]
[1726590248534,1.08510668,2371.5,2371.1,0.42162]
[1726590248725,1.08510668,2371.5,2371.0,3.2078]
[1726590249033,1.08510668,2371.3,2371.0,3.62945]
[1726590249221,1.08510668,2371.4,2371.0,3.2078]
[1726590249424,1.08510668,2371.4,2371.1,0.42163]
[1726590249727,1.08510668,2371.4,2371.2,0.42161]
[1726590250125,1.08510668,2371.4,2371.3,0.4216]
[1726590250336,1.08510668,2371.5,2371.4,0.42158]
[1726590250631,1.08510668,2371.6,2371.3,3.2078]
[1726590250829,1.08510668,2371.7,2371.4,0.42157]
[1726590251134,2.05366086,2371.8,2371.3,3.2078]
[1726590251135,1.08510668,2371.6,2371.3,3.2078]
[1726590251428,1.08510668,2371.5,2371.3,3.2078]
[1726590251629,0.42159,2371.4,2371.1,0.42162]
[1726590251930,0.4216,2371.4,2371.1,0.42163]
[1726590252124,1.08510668,2371.4,2370.9,3.2078]
[1726590252323,1.08510668,2371.4,2371.2,0.42161]
[1726590252525,1.08510668,2371.4,2371.3,0.4216]
[1726590252736,4.2168,2371.4,2371.3,0.4216]
[1726590253129,1.08510668,2371.5,2371.2,3.2078]
[1726590253130,1.50667668,2371.5,2371.2,3.2078]
[1726590253438,0.42159,2371.4,2371.2,3.62941]
[1726590253635,1.50668668,2371.5,2371.3,0.42159]
[1726590253832,1.08510668,2371.5,2371.2,3.2078]
[1726590254029,1.08510668,2371.5,2371.4,0.42158]
[1726590254332,1.08510668,2371.5,2371.2,3.2078]
[1726590254333,5.30190668,2371.5,2371.2,3.2078]
[1726590254534,0.42159,2371.4,2370.9,4.26197]
[1726590254727,0.42159,2371.4,2371.2,0.4216]
[1726590254933,1.08510668,2371.5,2371.0,1.05412]
[1726590255133,1.08510668,2371.5,2371.4,0.42158]
[1726590255434,0.42159,2371.4,2371.2,0.4216]
[1726590255629,0.42159,2371.4,2370.9,3.2078]
[1726590255630,0.4216,2371.3,2370.9,3.2078]
[1726590255833,4.04,2371.4,2370.9,3.2078]
[1726590255834,0.42165,2371.0,2370.9,3.2078]
[1726590256032,5.12510668,2371.4,2370.9,3.2078]
[1726590256033,0.42164,2371.1,2370.9,3.62945]
[1726590256224,0.42165,2371.0,2370.9,3.2078]
[1726590256429,1.50675668,2371.1,2370.9,3.2078]
[1726590256627,1.50675668,2371.1,2371.0,0.42165]
[1726590256929,1.50675668,2371.1,2370.9,3.2078]
[1726590256930,1.08510668,2371.1,2370.9,3.2078]